fUSD/lending_fUSD_20240123
["ID","MTS","AMOUNT","RATE_DAILY","PERIOD"]
[312584508,1706028984959,-171.356615,0.00046,14]
[312584509,1706028984980,-171.356615,0.00046,14]
[312584510,1706028985001,-151.0,0.00046,14]
[312584511,1706028985024,-151.0,0.00046,14]
[312584512,1706028985046,-153.094027,0.00046,14]
[312584513,1706028985248,-151.0,0.00046,14]
[312584514,1706028985271,-324.585524,0.00046,14]
[312584515,1706028985295,-324.585524,0.00046,14]
[312584516,1706028985320,-474.463236,0.00046,14]
[312584517,1706028985342,-474.463236,0.00046,14]
[312584518,1706028985364,-151.0,0.00046,14]
[312584519,1706028985390,-151.0,0.00046,14]
[312584520,1706028985413,-151.0,0.00046,14]
[312584521,1706028985435,-294.969914,0.00046,14]
[312584522,1706028985456,-151.0,0.00046,14]
[312584523,1706028985483,-151.0,0.00046,14]
[312584524,1706028985505,-151.0,0.00046,14]
[312584525,1706028985527,-151.0,0.00046,14]
[312584526,1706028985548,-151.0,0.00046,14]
[312584527,1706028985574,-471.471248,0.00046,14]
[312584528,1706028985596,-471.471248,0.00046,14]
[312584529,1706028985619,-260.74964234,0.00046,25]
[312584530,1706028985647,-201.0,0.00046355,36]
[312584531,1706028985671,-7777.48920469,0.00046545,22]
[312584532,1706028985693,-187.5,0.00046575,120]
[312584533,1706028985717,-100000.0,0.00047,37]
[312584534,1706028985740,-151.0,0.00047,14]
[312584535,1706028985763,-165.599335,0.00047,14]
[312584536,1706028985786,-487.996365,0.00047,14]
[312584537,1706028985809,-487.996365,0.00047,14]
[312584538,1706028985831,-321.727704,0.00047,14]
[312584539,1706028985853,-321.727704,0.00047,14]
[312584540,1706028985874,-260.74964234,0.00047,26]
[312584541,1706028985897,-54567.66961845,0.00047,30]
[312584542,1706028985920,-1000.0,0.00047309,30]
[312584543,1706028985943,-1000.0,0.00047309,30]
[312584544,1706028985964,-752.28310608,0.000475,10]
[312584545,1706028985989,-7777.48920469,0.00047664,23]
[312584546,1706028986011,-1206.3,0.00047821,15]
[312584547,1706028986035,-66434.85555801,0.00048,38]
[312584548,1706028992232,-151.0,0.00041096,14]
[312584549,1706028992255,-151.0,0.00041096,14]
[312584550,1706028992282,-151.0,0.00044557,14]
[312584551,1706028992309,-33565.14444199,0.00048,38]
[312584552,1706028992331,-50217.55111538,0.00048,30]
[312584553,1706028992353,-260.74964234,0.00048,27]
[312584554,1706028992376,-201.0,0.0004806,39]
[312584555,1706028992402,-1000.0,0.00048683,30]
[312584556,1706028992425,-7777.48920469,0.00048782,25]
[312584557,1706028992447,-107678.34454165,0.000489,30]
[312584558,1706028992473,-100000.0,0.00049,39]
[312584559,1706028992497,-260.74964234,0.00049,29]
[312584560,1706028992520,-1000.0,0.000493,30]
[312584561,1706028992542,-375.0,0.00049315,120]
[312584562,1706028992565,-500.0,0.00049315,36]
[312584563,1706028992591,-1741.0,0.00049315,30]
[312584564,1706028995191,5074.87732679,0.000389,15]
[312584565,1706029007194,764.64,0.00032877,15]
[312584566,1706029007750,764.64,0.00036613,15]
[312584567,1706029007864,764.64,0.00040349,15]
[312584568,1706029008402,764.64,0.00044085,15]
[312584569,1706029175559,-1179.40560522,0.00021818,2]
[312584570,1706029175582,-1175.20054403,0.00021819,2]
[312584571,1706029175605,-154.4,0.0002182,2]
[312584572,1706029175629,-189.4,0.00021862,2]
[312584573,1706029175653,-250.0,0.0002188,2]
[312584574,1706029175675,-200.0,0.00021891,2]
[312584575,1706029175699,-2611.04,0.00021892,2]
[312584576,1706029175722,-1000.0,0.00021934,2]
[312584577,1706029175745,-2714.38,0.00022109,2]
[312584578,1706029175767,-970.1549,0.00022288,2]
[312584579,1706029175790,-499.99,0.00022383,2]
[312584580,1706029175812,-150.29,0.00022383,2]
[312584581,1706029175834,-300.0,0.00022388,2]
[312584582,1706029175856,-150.0,0.00022487,2]
[312584583,1706029175879,-1285.70711704,0.00022488,2]
[312584584,1706029175901,-448.08,0.00022488,2]
[312584585,1706029175923,-870.5037117,0.0002249,5]
[312584586,1706029175946,-221.4202,0.000228,2]
[312584587,1706029175968,-337.1955112,0.000228,2]
[312584588,1706029176236,-337.19551117,0.00022814,2]
[312584589,1706029176267,-337.19551117,0.00022829,2]
[312584590,1706029176290,-337.19551117,0.00022843,2]
[312584591,1706029176314,-337.19551117,0.00022857,2]
[312584592,1706029176339,-161.33,0.00022864,2]
[312584593,1706029176364,-16263.2358,0.000229,2]
[312584594,1706029176387,-6617.4003,0.000229,2]
[312584595,1706029176410,-72359.6148,0.000229,2]
[312584596,1706029176432,-309815.0926,0.000229,2]
[312584597,1706029176454,-6283.1366,0.000229,2]
[312584598,1706029176476,-459.5064,0.000229,2]
[312584599,1706029176498,-1967.6149,0.000229,2]
[312584600,1706029176521,-1024.41612712,0.000229,2]
[312584601,1706029176547,-3394.727,0.000229,2]
[312584602,1706029176571,-703.23272645,0.000229,6]
[312584603,1706029176593,-204.19173295,0.000229,4]
[312584604,1706029176615,-1084.38492999,0.000229,2]
[312584605,1706029176640,-161.33,0.00022927,2]
[312584606,1706029176664,-161.33,0.0002299,2]
[312584607,1706029176687,-10345.46536385,0.0002299,2]
[312584608,1706029176710,-165.17,0.00022996,2]
[312584609,1706029176732,-2780.01074237,0.00022998,2]
[312584610,1706029176755,-400.0,0.00022999,2]
[312584611,1706029176778,-58175.16508072,0.00022999,2]
[312584612,1706029176800,-151.0,0.00023,2]
[312584613,1706029176822,-229.98861254,0.00023,2]
[312584614,1706029176845,-2184.72769177,0.00023,2]
[312584615,1706029176869,-4488851.97895837,0.00023,2]
[312584616,1706029274542,1670.0,0.00021003,2]
[312584617,1706029342678,5196.80580802,0.00021003,2]
[312584618,1706029342811,155.0,0.00021003,2]
[312584619,1706029345828,6090.8379193,0.00021003,2]
[312584620,1706029349068,292.42544841,0.00021003,2]
[312584621,1706029349104,155.0,0.00021003,2]
[312584622,1706029351048,283.48429685,0.00021003,2]
[312584623,1706029356668,155.31998547,0.00021003,2]
[312584624,1706029358290,5196.80580802,0.00021003,2]
[312584625,1706029361050,292.42544841,0.00021003,2]
[312584626,1706029364147,6074.18252716,0.00021003,2]
[312584627,1706029367022,413.34788972,0.00021003,2]
[312584628,1706029369104,235.79469252,0.00021003,2]
[312584629,1706029379054,292.42544841,0.00021003,2]
[312584630,1706029380302,5196.80580802,0.00021003,2]
[312584631,1706029386362,157.93,0.00020448,2]
[312584632,1706029386726,150.80119749,0.00020898,2]
[312584633,1706029398294,3958.63421663,0.00021003,2]
[312584634,1706029403066,214.47623148,0.00021003,2]
[312584635,1706029442179,155.83947026,0.00021003,2]
[312584636,1706029442302,504.79268354,0.00021003,2]
[312584637,1706029443760,-1340.73560522,0.00021759,2]
[312584638,1706029473313,-690.58780926,0.00021759,2]
[312584666,1706029818134,150.03,0.00019359,2]
[312584681,1706029831558,-1812.58826834,0.00021323,2]
[312584683,1706029833215,-792.88209523,0.00021323,2]
[312584684,1706029833225,-146.39462149,0.00021324,2]
[312584686,1706029833270,-379.02318777,0.00021324,2]
[312584687,1706029833279,-622.62568775,0.00021325,2]
[312584688,1706029833289,-649.3,0.00021326,2]
[312584689,1706029833298,-3235.69609323,0.00021355,2]
[312584708,1706029837669,-1984.58496075,0.00021355,2]
[312584709,1706029837681,-5085.96491038,0.00021356,2]
[312584710,1706029837751,-7851.5,0.00021356,2]
[312584711,1706029837768,-4622.23233708,0.00021356,2]
[312584712,1706029837868,-1078.27275254,0.00021356,2]
[312584713,1706029837880,-1179.40560522,0.00021399,2]
[312584714,1706029837893,-629.50668256,0.00021399,2]
[312584715,1706029837905,-442.24,0.000214,2]
[312584716,1706029837917,-197.47,0.00021443,2]
[312584717,1706029837929,-150.0,0.00021464,2]
[312584718,1706029837945,-21628.28,0.00021466,2]
[312584719,1706029837957,-200.0,0.00021466,2]
[312584720,1706029837969,-499.99,0.00021466,2]
[312584722,1706029837982,-448.08,0.00021466,2]
[312584724,1706029837994,-500.0,0.00021508,2]
[312584725,1706029838006,-150.0,0.00021508,2]
[312584726,1706029838017,-150.03,0.00021623,2]
[312584727,1706029838030,-3067.21,0.00021624,2]
[312584729,1706029838042,-200.0,0.00021669,2]
[312584731,1706029838054,-373.4,0.00021709,2]
[312584733,1706029838065,-250.0,0.0002175,2]
[312584735,1706029838077,-155.0,0.00021759,2]
[312584738,1706029838089,-1024.10143463,0.00021759,2]
[312584740,1706029838101,-1159.94056088,0.00021759,2]
[312584742,1706029838113,-297.0,0.00021789,3]
[312584745,1706029838125,-200.0,0.00021789,2]
[312584747,1706029838139,-165.17,0.00022133,2]
[312584750,1706029838151,-970.1549,0.00022301,2]
[312584752,1706029838163,-161.33,0.00022402,2]
[312584754,1706029838175,-395.41742636,0.00022439,2]
[312584757,1706029838187,-161.33,0.00022463,2]
[312584759,1706029838199,-373.4,0.00022512,2]
[312584761,1706029838211,-161.33,0.00022525,2]
[312584763,1706029838223,-152.69,0.00022562,2]
[312584766,1706029838236,-300.0,0.00022567,2]
[312584768,1706029838247,-5375.4697,0.00022568,2]
[312584770,1706029838259,-6324.1216,0.00022568,2]
[312584773,1706029838270,-337.1955112,0.0002257,2]
[312584775,1706029838283,-161.33,0.00022586,2]
[312584777,1706029838295,-161.33,0.00022648,2]
[312584780,1706029838307,-150.47,0.00022659,2]
[312584782,1706029838319,-150.91,0.00022664,2]
[312584784,1706029838332,-199.32847921,0.00022666,2]
[312584787,1706029838344,-524.29723509,0.00022666,2]
[312584789,1706029838357,-155.0,0.00022666,2]
[312584791,1706029838369,-155.46482021,0.00022666,2]
[312584794,1706029838381,-301.47434633,0.00022666,2]
[312584796,1706029838391,-155.0,0.00022666,2]
[312584798,1706029838400,-1071.38976877,0.00022666,2]
[312584800,1706029838410,-1500.0,0.00022666,2]
[312584801,1706029838420,-1853.57655761,0.00022667,2]
[312584803,1706029838429,-442850.96110112,0.00022668,2]
[312584805,1706029838438,-161.33,0.00022709,2]
[312584807,1706029838447,-161.33,0.00022771,2]
[312584809,1706029838457,-221.4202,0.000228,2]
[312584811,1706029838467,-417.26,0.000228,2]
[312584813,1706029838476,-161.33,0.00022832,2]
[312584815,1706029838485,-201.0,0.00022886,2]
[312584817,1706029838495,-162.69560449,0.0002289,2]
[312584819,1706029838504,-161.33,0.00022893,2]
[312584821,1706029838514,-169.94006734,0.000229,2]
[312584823,1706029838523,-10400.6457,0.000229,2]
[312584824,1706029838532,-156048.2733,0.000229,2]
[312584825,1706029838543,-55555.0,0.000229,2]
[312584826,1706029838552,-184.71706284,0.000229,2]
[312584827,1706029838561,-1024.41612712,0.000229,2]
[312584829,1706029839021,-990.13640862,0.000229,2]
[312584830,1706029839053,-1084.38492999,0.000229,2]
[312584831,1706029839079,-204.19173295,0.000229,4]
[312584832,1706029839096,-250.18735462,0.000229,2]
[312584833,1706029839107,-161.33,0.00022955,2]
[312584834,1706029839117,-162.69560449,0.0002299,2]
[312584835,1706029839127,-2903.66792719,0.00022998,2]
[312584836,1706029839137,-400.0,0.00022998,2]
[312584837,1706029839147,-1175.20054403,0.00022998,2]
[312584838,1706029839156,-359.62041276,0.00022999,10]
[312584839,1706029839166,-150.0,0.00022999,2]
[312584840,1706029839175,-150.0,0.00022999,2]
[312584841,1706029839186,-150.0,0.00022999,2]
[312584842,1706029839196,-150.0,0.00022999,2]
[312584843,1706029839206,-2203777.83810757,0.00023,2]
[312584844,1706029839220,-787.81248,0.00023,2]
[312584845,1706029839591,-55538.29100057,0.00023,2]
[312584852,1706029840089,-890.57269109,0.00023,2]
[312584854,1706029840153,-1031.94829589,0.00023,2]
[312584855,1706029840165,-2003.72192414,0.00023,2]
[312584856,1706029840176,-39460.99999999,0.00023,2]
[312584857,1706029840188,-379.3174682,0.00023,2]
[312584858,1706029840912,-860.33222904,0.00023,2]
[312584859,1706029840976,-762.17674533,0.00023,2]
[312584912,1706029842634,-6118.38146636,0.000229,2]
[312584915,1706029842644,-3672.11088073,0.00023,2]
[312584960,1706029845708,-220.13775132,0.00021759,2]
[312584961,1706029845718,-326.31366186,0.00022568,2]
[312584962,1706029845827,-2544.44153814,0.00022568,2]
[312584963,1706029845836,-304.45979647,0.00022999,2]
[312584964,1706029845846,-665190.01762562,0.00023,2]
[312584965,1706029845870,-500.0,0.00023,2]
[312584967,1706029845960,-768.39898134,0.00023,2]
[312584969,1706029845971,-1672.3,0.00023,2]
[312584976,1706029846120,-113806.70285247,0.00023,2]
[312584977,1706029846131,-300.0,0.00023,2]
[312584978,1706029856343,434.16489845,0.00021,2]
[312584979,1706029872340,731.05509507,0.00021,2]
[312584980,1706029874046,-175.0,0.00021758,2]
[312584981,1706029882569,150.0,0.00031,120]
[312584982,1706030064007,1569.83,0.00020915,2]
[312584984,1706030082299,155.27808724,0.00019576,2]
[312584985,1706030114209,155.0,0.00019576,2]
[312584986,1706030138203,155.0,0.00019576,2]
[312584992,1706030154207,155.0,0.00019576,2]
[312584996,1706030170223,155.0,0.00019576,2]
[312584999,1706030192207,155.0,0.00019576,2]
[312585000,1706030197819,200.0,0.0002088,2]
[312585002,1706030210206,155.0,0.00019576,2]
[312585004,1706030232210,168.70038776,0.00019576,2]
[312585006,1706030251197,150.0,0.00020871,2]
[312585007,1706030262006,157.07,0.00020871,2]
[312585008,1706030317324,168.24,0.00018965,2]
[312585010,1706030330704,329.22,0.00020864,2]
[312585011,1706030365901,230.66712149,0.00020945,2]
[312585015,1706030407538,682.14,0.00020858,2]
[312585016,1706030409665,-247.32726579,0.00021039,2]
[312585017,1706030409687,-155.0,0.0002104,2]
[312585018,1706030409711,-5220.28105398,0.0002104,2]
[312585019,1706030409734,-867.95596008,0.00021041,2]
[312585020,1706030409762,-1179.40560522,0.00021041,2]
[312585021,1706030409786,-629.50668256,0.00021042,2]
[312585022,1706030409806,-2605.47036357,0.00021043,2]
[312585023,1706030409828,-525.70670194,0.00021043,2]
[312585024,1706030409849,-1335.53,0.00021058,2]
[312585025,1706030409871,-168.24,0.00021229,2]
[312585026,1706030409897,-250.0,0.00021358,2]
[312585027,1706030409918,-1767.63,0.0002137,2]
[312585028,1706030421367,188.54948321,0.00020663,2]
[312585029,1706030436346,170.64,0.00021365,2]
[312585030,1706030436573,2000.0,0.00021365,2]
[312585031,1706030462878,250.0,0.00020899,2]
[312585033,1706030493803,201.0,0.00020886,2]
[312585040,1706030676044,200.0,0.0002087,2]
[312585042,1706030718553,500.0,0.0002,3]
[312585043,1706030738051,174.77,0.00018952,2]
[312585044,1706030738309,174.77,0.00021216,2]
[312585045,1706030815799,500.0,0.000215,2]
[312585046,1706030823759,202.0,0.00021451,2]
[312585047,1706030825305,23900.0,0.0002085,2]
[312585088,1706030826890,324.65,0.0002085,2]
[312585090,1706030919185,840.0,0.00021359,2]
[312585095,1706030966234,-660.37,0.00021505,2]
[312585096,1706030966255,-168.58388708,0.00021505,2]
[312585097,1706030966276,-52722.63836539,0.00021505,2]
[312585131,1706031031763,-300.0,0.00021504,2]
[312585133,1706031031773,-150.0,0.00021504,2]
[312585135,1706031031782,-12.25693626,0.00021505,2]
[312585140,1706031031829,-4310.9664717,0.00021505,2]
[312585141,1706031031842,-413.22963742,0.00021505,2]
[312585142,1706031031859,-4324.98764311,0.00021505,2]
[312585143,1706031031872,-115423.48480212,0.00021505,2]
[312585144,1706031031882,-247.15421615,0.00021533,2]
[312585145,1706031031892,-2226.0159,0.00021552,2]
[312585146,1706031031901,-459.5064,0.00021599,2]
[312585147,1706031031910,-498.0,0.00021644,2]
[312585148,1706031031920,-2500.0,0.00021653,2]
[312585149,1706031031929,-301.90759336,0.00021697,2]
[312585150,1706031031939,-88981.65,0.00021699,2]
[312585151,1706031031948,-150.99,0.000217,2]
[312585152,1706031031957,-1578.72,0.000217,2]
[312585153,1706031031966,-499.99,0.000217,2]
[312585154,1706031031976,-458.08834782,0.00021751,2]
[312585155,1706031031985,-390.08243885,0.00021751,2]
[312585156,1706031031996,-2001.50335278,0.00021751,2]
[312585157,1706031032006,-377.71007196,0.00021751,2]
[312585158,1706031032015,-867.35153962,0.00021751,2]
[312585159,1706031032025,-328.58006833,0.00021751,2]
[312585160,1706031032035,-1255.00056628,0.00021754,2]
[312585161,1706031032045,-4087.84788181,0.00021756,2]
[312585162,1706031032055,-6293.93346093,0.00021757,2]
[312585163,1706031032064,-27176.59113526,0.00021758,2]
[312585164,1706031032074,-626.29700848,0.00021758,4]
[312585165,1706031032086,-8525.55662925,0.00021759,2]
[312585166,1706031032096,-356.64347884,0.00021759,2]
[312585167,1706031032106,-250.0,0.00021918,2]
[312585168,1706031032116,-250.0,0.00022,2]
[312585169,1706031032125,-150.0,0.00022,2]
[312585170,1706031032134,-208.02736992,0.00022,2]
[312585171,1706031032144,-352.66,0.00022,2]
[312585172,1706031032153,-617.92309023,0.00022,2]
[312585173,1706031032164,-257.2,0.00022,2]
[312585174,1706031032173,-156.16540912,0.00022076,2]
[312585175,1706031032183,-619.88619749,0.00022078,2]
[312585176,1706031032192,-513.29,0.00022137,2]
[312585177,1706031032201,-250.0,0.00022274,2]
[312585178,1706031032211,-2476.20957475,0.00022306,2]
[312585179,1706031032221,-498.0,0.00022445,2]
[312585180,1706031032230,-1252.55959257,0.00022488,2]
[312585181,1706031032239,-483.97784617,0.00022548,2]
[312585182,1706031032250,-150.0,0.00022548,2]
[312585183,1706031032260,-155.80319927,0.00022766,2]
[312585184,1706031032269,-429.52589007,0.000228,2]
[312585185,1706031032279,-1730.168,0.00022898,2]
[312585186,1706031032288,-55555.0,0.000229,2]
[312585187,1706031032298,-169.94006734,0.000229,2]
[312585188,1706031032307,-184.71706284,0.000229,2]
[312585189,1706031032316,-649.254257,0.000229,2]
[312585190,1706031032326,-237.13343632,0.000229,2]
[312585191,1706031032336,-215.35384188,0.00022976,2]
[312585192,1706031032350,-243.20763244,0.00022988,2]
[312585193,1706031032361,-2780.01755274,0.00022997,2]
[312585194,1706031032371,-695.69995506,0.00022998,2]
[312585195,1706031032381,-264.38597346,0.00022998,2]
[312585196,1706031032391,-253.12598674,0.00022998,2]
[312585197,1706031032400,-243.87713086,0.00022998,2]
[312585198,1706031032410,-5442.70539136,0.00022998,2]
[312585199,1706031032421,-2945.7151429,0.00022998,2]
[312585200,1706031032433,-2167.52559884,0.00022998,2]
[312585201,1706031032444,-198.8532826,0.00022998,2]
[312585202,1706031032455,-286.73899009,0.00022998,2]
[312585203,1706031032465,-336.7179586,0.00022998,2]
[312585204,1706031032475,-257.20683574,0.00022998,2]
[312585205,1706031032485,-2144.43375818,0.00022998,2]
[312585206,1706031032497,-258.61319956,0.00022998,2]
[312585207,1706031032507,-155.0,0.00022998,2]
[312585208,1706031032517,-455792.72384916,0.00022998,2]
[312585209,1706031032527,-3964.39161946,0.00022998,2]
[312585210,1706031032537,-155.49419983,0.00022998,2]
[312585211,1706031032547,-1068.83824203,0.00022999,2]
[312585212,1706031032558,-16772.65978305,0.00022999,2]
[312585213,1706031032567,-158.30695886,0.00022999,2]
[312585214,1706031032577,-220.30306813,0.00022999,2]
[312585215,1706031032587,-231.67297759,0.00022999,2]
[312585216,1706031032597,-1850.5397768,0.00022999,2]
[312585217,1706031032608,-193.8500035,0.00022999,2]
[312585218,1706031032618,-285.64727706,0.00022999,2]
[312585219,1706031032628,-369.19666549,0.00022999,2]
[312585220,1706031032638,-155.1313233,0.00022999,2]
[312585221,1706031032648,-2979.62207994,0.00022999,2]
[312585222,1706031032658,-157.40915313,0.00022999,2]
[312585223,1706031032669,-1218.48457109,0.00022999,2]
[312585224,1706031032679,-302.89880783,0.00022999,2]
[312585225,1706031032689,-155.69206296,0.00022999,2]
[312585226,1706031032699,-393.71012615,0.00022999,2]
[312585227,1706031032709,-186.19988065,0.00022999,2]
[312585228,1706031032719,-534.59806399,0.00022999,2]
[312585229,1706031032729,-449.24324395,0.00022999,2]
[312585230,1706031032739,-500.0,0.00022999,2]
[312585231,1706031032751,-500.0,0.00022999,2]
[312585232,1706031032761,-500.0,0.00022999,2]
[312585233,1706031032771,-500.0,0.00022999,2]
[312585234,1706031032780,-500.0,0.00022999,2]
[312585235,1706031032790,-500.0,0.00022999,2]
[312585236,1706031032800,-519.26168944,0.00022999,2]
[312585237,1706031032810,-598.96683816,0.00022999,2]
[312585238,1706031032821,-500.0,0.00022999,2]
[312585239,1706031032830,-59554.39709809,0.00023,2]
[312585240,1706031032863,-1301.3000002,0.00023,2]
[312585241,1706031032875,-2123.00412,0.00023,2]
[312585242,1706031032891,-406.99458817,0.00023,2]
[312585245,1706031033665,-712007.94039454,0.00023,2]
[312585325,1706031037696,-605.937402,0.00023,2]
[312585326,1706031037810,-2028.07605,0.00023,2]
[312585327,1706031037823,-22218.0,0.00023,2]
[312585328,1706031037836,-12948.64693045,0.00023,2]
[312585329,1706031037852,-733.25967809,0.00023,2]
[312585330,1706031037896,-500.0,0.00023,2]
[312585331,1706031037907,-3940.3,0.00023,2]
[312585332,1706031037961,-390.90981559,0.00023,2]
[312585333,1706031038022,-484.67894162,0.00023,2]
[312585334,1706031038034,-402.12299413,0.00023,2]
[312585335,1706031038044,-1468.02454202,0.00023,2]
[312585336,1706031038060,-2203777.83810757,0.00023,2]
[312585338,1706031038101,-1576.10650313,0.00023,2]
[312585531,1706031040778,-1335.54313078,0.00023,2]
[312585532,1706031040789,-8128.62479999,0.00023,2]
[312585533,1706031040842,-374.24074443,0.00023,2]
[312585534,1706031040854,-1163.68068873,0.00023,2]
[312585535,1706031040866,-2487.15021336,0.00023,2]
[312585536,1706031040881,-265.43330548,0.00023,2]
[312585537,1706031040893,-5698.3610168,0.00023,2]
[312585538,1706031040912,-464.3237844,0.00023,2]
[312585539,1706031040923,-521.42688129,0.00023,2]
[312585540,1706031040971,-1223.88425349,0.00023,2]
[312585541,1706031040986,-275.46941629,0.00023,2]
[312585542,1706031041061,-427.35537306,0.00023,2]
[312585611,1706031042782,-393.32,0.00023,2]
[312585619,1706031042845,-391.65381662,0.00023,2]
[312585623,1706031042875,-0.01068611,0.00023,2]
[312585625,1706031042887,-9907.13016509,0.00023,2]
[312585629,1706031042918,-921.8813699,0.00023,2]
[312585631,1706031042929,-1317.30615411,0.00023,2]
[312585632,1706031042977,-2405.700798,0.00023,2]
[312585633,1706031042989,-827.19150837,0.00023,2]
[312585634,1706031043002,-440.77162528,0.00023,2]
[312585635,1706031043012,-397.66172814,0.00023,2]
[312585636,1706031043024,-701435.89424378,0.00023,2]
[312585637,1706031043035,-4050.0,0.00023,2]
[312585638,1706031043072,-53401.85526144,0.00023,2]
[312585639,1706031043084,-3098.46563255,0.00023,2]
[312585749,1706031045910,-2085.37217435,0.00022999,2]
[312585751,1706031045920,-3933.14135761,0.00023,2]
[312585753,1706031045932,-325.4120935,0.00023,2]
[312585757,1706031045960,-687.27552852,0.00023,2]
[312585759,1706031045971,-345.14447152,0.00023,2]
[312585762,1706031045987,-608.33683848,0.00023,2]
[312585764,1706031045999,-257.60009668,0.00023,2]
[312585769,1706031046041,-949.65,0.00023,2]
[312585772,1706031046053,-4185.93724059,0.00023,2]
[312585774,1706031046066,-525.34460969,0.00023,2]
[312585776,1706031046077,-334541.74575794,0.00023,2]
[312585779,1706031046089,-5278.19345045,0.00023,2]
[312585782,1706031046117,-400.57,0.00023,2]
[312585785,1706031046129,-732.66045911,0.00023,2]
[312585787,1706031046140,-1444.83402703,0.00023,2]
[312585789,1706031046152,-2551.23347179,0.00023,2]
[312585791,1706031046164,-731.53118823,0.00023,2]
[312585795,1706031046186,-487.6276986,0.00023,2]
[312585797,1706031046198,-572.85,0.00023,2]
[312585798,1706031046209,-1060.03201634,0.00023,2]
[312585801,1706031046247,-300.0,0.00023,2]
[312585892,1706031063968,202.0,0.00021451,2]
[312585893,1706031086549,731.05509507,0.00021,2]
[312585894,1706031119090,400.95171784,0.000215,2]
[312585895,1706031121632,4087.56007074,0.000215,2]
[312585896,1706031186875,358.35,0.00019887,2]
[312585897,1706031295696,-155.0,0.00021386,2]
[312585898,1706031295721,-345.0,0.00021386,2]
[312585899,1706031305276,180.0,0.00020832,2]
[312585900,1706031313031,-500.0,0.00021385,2]
[312585901,1706031317619,-150.0,0.00021076,2]
[312585902,1706031317644,-350.0,0.00021384,2]
[312585903,1706031344114,-377.2721312,0.00021382,2]
[312585904,1706031344137,-122.7278688,0.00021382,2]
[312585905,1706031346396,23900.0,0.00020976,2]
[312585906,1706031374107,847.53037371,0.00020976,2]
[312585907,1706031389164,-300.0,0.00021219,2]
[312585908,1706031394127,846.75868617,0.00020976,2]
[312585910,1706031620263,362.63,0.00019111,2]
[312585911,1706031657168,150.0,0.00020498,2]
[312585912,1706031658834,150.0,0.00019346,2]
[312585913,1706031658855,122.73865209,0.00019346,2]
[312585914,1706031711925,150.0,0.00021003,2]
[312585915,1706031711946,139.23191357,0.00021003,2]
[312585916,1706031722563,275.32154174,0.00019346,2]
[312585917,1706031725323,-150.0,0.00021003,2]
[312585918,1706031725467,-131.49567095,0.00021003,2]
[312585919,1706031725489,-18.50432905,0.00021003,2]
[312585920,1706031725543,-150.0,0.00021003,2]
[312585921,1706031725624,-239.83437124,0.00021003,2]
[312585922,1706031728320,260.44164068,0.00021002,2]
[312585923,1706031728499,622.62568775,0.00021002,2]
[312585924,1706031735137,233.42707403,0.00021002,2]
[312585925,1706031740030,155.0,0.00019346,2]
[312585926,1706031740706,3332.39700873,0.00021002,2]
[312585927,1706031742159,600.0,0.00019346,2]
[312585928,1706031743667,2622.64497432,0.00021002,2]
[312585929,1706031744492,246.37440426,0.00020636,2]
[312585930,1706031749027,155.0,0.00021001,2]
[312585931,1706031759722,155.0,0.00021002,2]
[312585932,1706031761542,473.72177348,0.00021002,2]
[312585933,1706031765388,155.0,0.00021002,2]
[312585934,1706031772897,501.92146411,0.00021001,2]
[312585935,1706031806865,165.56,0.00020892,2]